lending/lending_fUSD_20240510
["ID","MTS","AMOUNT","RATE_DAILY","PERIOD"]
[326764290,1715332238596,-1500.0,0.00027005,2]
[326764292,1715332238605,-150.0,0.00027006,2]
[326764294,1715332238614,-1500.0,0.0002701,2]
[326764296,1715332238623,-150.0,0.00027011,2]
[326764298,1715332238633,-1500.0,0.00027018,2]
[326764300,1715332238642,-150.0,0.0002702,2]
[326764302,1715332238651,-150.0,0.00027038,2]
[326764304,1715332238661,-1500.0,0.00027047,2]
[326764306,1715332238670,-150.0,0.00027047,2]
[326764308,1715332238679,-150.0,0.00027047,2]
[326764310,1715332238688,-1500.0,0.00027051,2]
[326764312,1715332238698,-1500.0,0.00027067,2]
[326764314,1715332238709,-1500.0,0.00027069,2]
[326764316,1715332238718,-150.0,0.00027072,2]
[326764318,1715332238727,-150.0,0.00027074,2]
[326764320,1715332238736,-1500.0,0.00027076,2]
[326764322,1715332238746,-150.0,0.0002708,2]
[326764324,1715332238755,-1500.0,0.00027081,2]
[326764326,1715332238764,-150.0,0.00027084,2]
[326764328,1715332238773,-150.0,0.00027084,2]
[326764330,1715332238783,-1500.0,0.00027087,2]
[326764332,1715332238792,-150.0,0.00027104,2]
[326764334,1715332238801,-150.0,0.00027108,2]
[326764336,1715332238810,-434.16185147,0.0002712,2]
[326764338,1715332238819,-251.79891757,0.00027121,2]
[326764340,1715332238828,-150.0,0.00027124,2]
[326764342,1715332238838,-150.0,0.00027127,2]
[326764344,1715332238847,-1500.0,0.00027127,2]
[326764345,1715332238856,-1500.0,0.0002714,2]
[326764347,1715332238865,-150.0,0.00027143,2]
[326764349,1715332238874,-150.0,0.00027145,2]
[326764352,1715332238884,-1500.0,0.00027152,2]
[326764354,1715332238893,-1500.0,0.00027173,2]
[326764356,1715332238903,-150.0,0.00027173,2]
[326764357,1715332238911,-200.0,0.00027177,2]
[326764360,1715332238921,-1000.0,0.00027177,2]
[326764361,1715332238930,-200.0,0.00027177,2]
[326764363,1715332238939,-500.0,0.00027177,2]
[326764364,1715332238948,-150.0,0.0002719,2]
[326764366,1715332238959,-1500.0,0.00027195,2]
[326764368,1715332238968,-157.051014,0.00027198,14]
[326764370,1715332238978,-150.0,0.00027198,2]
[326764372,1715332238987,-1070.17,0.000272,10]
[326764374,1715332238996,-150.0,0.00027202,2]
[326764375,1715332239006,-150.0,0.00027203,2]
[326764376,1715332239015,-1500.0,0.00027205,2]
[326764377,1715332239024,-1500.0,0.00027208,2]
[326764378,1715332239034,-1500.0,0.00027228,2]
[326764379,1715332239044,-150.0,0.00027229,2]
[326764380,1715332239053,-150.0,0.0002724,2]
[326764381,1715332239062,-1500.0,0.0002724,2]
[326764382,1715332239072,-1500.0,0.00027247,2]
[326764383,1715332239081,-1000.0,0.0002726,2]
[326764384,1715332239091,-1057.1087,0.0002726,2]
[326764385,1715332239100,-1500.0,0.00027263,2]
[326764386,1715332239110,-1500.0,0.00027263,2]
[326764387,1715332239120,-150.0,0.00027271,2]
[326764388,1715332239129,-19537.51718335,0.00027272,2]
[326764389,1715332239140,-1500.0,0.00027272,2]
[326764390,1715332239150,-1500.0,0.00027277,2]
[326764391,1715332239160,-1500.0,0.00027277,2]
[326764392,1715332239169,-1500.0,0.00027279,2]
[326764393,1715332239178,-150.0,0.00027292,2]
[326764394,1715332239194,-1607.96297943,0.00027293,2]
[326764395,1715332239204,-1500.0,0.00027297,2]
[326764396,1715332239214,-150.0,0.00027298,2]
[326764397,1715332239224,-160.0,0.000273,2]
[326764398,1715332239235,-500.0,0.000273,2]
[326764399,1715332239244,-196.92,0.000273,2]
[326764400,1715332239254,-355.961476,0.000273,2]
[326764401,1715332239265,-150.0,0.000273,5]
[326764402,1715332239341,-150.0,0.00027306,2]
[326764403,1715332239351,-3142.58134493,0.00027307,2]
[326764404,1715332239361,-150.0,0.0002731,2]
[326764405,1715332239371,-1500.0,0.00027313,2]
[326764406,1715332239381,-150.0,0.00027313,2]
[326764407,1715332239391,-1500.0,0.0002732,2]
[326764408,1715332239401,-150.0,0.00027326,2]
[326764409,1715332239411,-933.54895211,0.00027332,2]
[326764410,1715332239420,-150.0,0.00027345,2]
[326764411,1715332239430,-150.0,0.00027348,2]
[326764412,1715332239439,-150.0,0.00027366,2]
[326764413,1715332239449,-10000.0,0.00027369,3]
[326764414,1715332239459,-150.0,0.00027378,2]
[326764415,1715332239468,-180.3482399,0.00027387,2]
[326764416,1715332239479,-1500.0,0.00027391,2]
[326764417,1715332239488,-150.0,0.00027393,2]
[326764418,1715332239498,-641.710378,0.00027395,2]
[326764419,1715332239507,-787.96593841,0.00027395,2]
[326764420,1715332239516,-228.64758728,0.00027395,2]
[326764421,1715332239526,-155.00000001,0.00027395,2]
[326764422,1715332239535,-529.63476381,0.00027395,2]
[326764423,1715332239545,-597.2279121,0.00027395,2]
[326764424,1715332239555,-198.01200584,0.00027395,2]
[326764425,1715332239564,-155.32677973,0.00027395,2]
[326764426,1715332239574,-159.08888038,0.00027395,2]
[326764428,1715332239583,-196.13561442,0.00027395,2]
[326764429,1715332239593,-200.08864996,0.00027395,2]
[326764430,1715332239602,-160.20292495,0.00027395,2]
[326764431,1715332239611,-156.45500196,0.00027395,2]
[326764433,1715332239621,-1932.08666471,0.00027395,2]
[326764435,1715332239630,-220.0701607,0.00027395,2]
[326764437,1715332239640,-267.48303809,0.00027395,2]
[326764439,1715332239649,-216.99723947,0.00027395,2]
[326764440,1715332239658,-1231.00014415,0.00027395,2]
[326764441,1715332239668,-1768.70416813,0.00027395,2]
[326764442,1715332239677,-202.40860098,0.00027395,2]
[326764443,1715332239687,-2677.94402908,0.00027395,2]
[326764444,1715332239697,-5861.29139766,0.00027396,2]
[326764445,1715332239708,-150.01,0.00027396,2]
[326764446,1715332239719,-170.59165835,0.00027396,10]
[326764447,1715332239728,-143087.36745185,0.00027397,7]
[326764448,1715332239742,-424.88047589,0.00027397,7]
[326764449,1715332239753,-3300.39999988,0.00027397,7]
[326764450,1715332239765,-1235.47644,0.00027397,7]
[326764453,1715332239792,-758765.33458609,0.00027397,7]
[326764455,1715332239822,-344.68046227,0.0001739,2]
[326764456,1715332239832,-33576.1196953,0.00027397,7]
[326764457,1715332240192,-349.29093456,0.00027397,7]
[326764458,1715332240205,-614.17356802,0.00027397,7]
[326764459,1715332240220,-125921.64570504,0.00027397,7]
[326764460,1715332240230,-500.0,0.00027397,2]
[326764461,1715332240239,-295.91167281,0.00027397,2]
[326764462,1715332240248,-155.75232576,0.00027397,2]
[326764463,1715332240258,-155.3848474,0.00027397,2]
[326764464,1715332240269,-206.337482,0.00027397,2]
[326764465,1715332240278,-155.70234634,0.00027397,2]
[326764466,1715332240288,-1052.63669944,0.00027397,2]
[326764467,1715332240297,-448.34997458,0.00027397,2]
[326764468,1715332240307,-500.0,0.00027397,4]
[326764469,1715332240316,-500.0,0.00027397,4]
[326764470,1715332240325,-503.65290588,0.00027397,4]
[326764471,1715332240334,-501.59825831,0.00027397,4]
[326764472,1715332240343,-500.66594848,0.00027397,4]
[326764473,1715332240352,-513.88868768,0.00027397,4]
[326764474,1715332240361,-502.68837957,0.00027397,4]
[326764475,1715332240371,-511.62328736,0.00027397,4]
[326764476,1715332240380,-503.32334111,0.00027397,4]
[326764477,1715332240389,-627.17635447,0.00027397,4]
[326764478,1715332240398,-501.00829161,0.00027397,4]
[326764479,1715332240407,-501.739662,0.00027397,4]
[326764480,1715332240417,-502.04122663,0.00027397,4]
[326764481,1715332240426,-503.66371566,0.00027397,4]
[326764482,1715332240436,-345.92678262,0.00027397,4]
[326764483,1715332240445,-244.72306046,0.00027397,4]
[326764484,1715332240454,-500.0,0.00027397,4]
[326764485,1715332240463,-501.09524699,0.00027397,4]
[326764486,1715332240472,-500.0,0.00027397,4]
[326764487,1715332240482,-501.77099556,0.00027397,4]
[326764488,1715332240491,-541.34988149,0.00027397,4]
[326764489,1715332240500,-348.98340887,0.00027397,4]
[326764490,1715332240510,-200.0,0.00027397,4]
[326764491,1715332240519,-594.79065282,0.00027397,4]
[326764492,1715332240528,-511.76492744,0.00027397,4]
[326764493,1715332240538,-500.0,0.00027397,4]
[326764494,1715332240547,-503.32519164,0.00027397,4]
[326764495,1715332240556,-502.13462707,0.00027397,4]
[326764496,1715332240565,-500.91733921,0.00027397,4]
[326764497,1715332240574,-515.26440467,0.00027397,4]
[326764498,1715332240584,-349.04228649,0.00027397,4]
[326764499,1715332240593,-502.22073264,0.00027397,4]
[326764500,1715332240603,-502.68780189,0.00027397,4]
[326764501,1715332240612,-338.85546724,0.00027397,4]
[326764502,1715332240621,-500.0,0.00027397,4]
[326764503,1715332240631,-550.67829103,0.00027397,4]
[326764504,1715332240640,-527.96918226,0.00027397,4]
[326764505,1715332240649,-501.18393394,0.00027397,4]
[326764506,1715332240658,-500.0,0.00027397,4]
[326764507,1715332240668,-503.5778965,0.00027397,4]
[326764508,1715332240677,-1009.04,0.00027397,4]
[326764509,1715332240687,-503.6994468,0.00027397,4]
[326764510,1715332240696,-500.0,0.00027397,4]
[326764511,1715332240706,-503.74655361,0.00027397,4]
[326764512,1715332240715,-830.64,0.00027397,4]
[326764513,1715332240724,-501.55468346,0.00027397,4]
[326764514,1715332240733,-406.4458003,0.00027397,4]
[326764515,1715332240743,-500.0,0.00027397,4]
[326764516,1715332240752,-530.97612706,0.00027397,4]
[326764517,1715332240762,-233.37017342,0.00027397,4]
[326764518,1715332240771,-1199.53,0.00027397,4]
[326764519,1715332240780,-500.0,0.00027397,4]
[326764520,1715332240790,-2000.0,0.00027397,2]
[326764521,1715332240799,-200.0,0.00027397,2]
[326764522,1715332240808,-500.0,0.00027397,4]
[326764523,1715332240818,-1107.3,0.00027397,4]
[326764524,1715332240827,-500.0,0.00027397,4]
[326764525,1715332240836,-500.0,0.00027397,4]
[326764526,1715332240845,-500.0,0.00027397,4]
[326764527,1715332240854,-500.0,0.00027397,4]
[326764528,1715332240863,-501.81138455,0.00027397,4]
[326764529,1715332240872,-505.03761021,0.00027397,4]
[326764530,1715332240881,-583.61,0.00027397,4]
[326764531,1715332240890,-500.0,0.00027397,4]
[326764532,1715332240899,-500.0,0.00027397,4]
[326764533,1715332240909,-767.42,0.00027397,4]
[326764534,1715332240918,-529.66,0.00027397,4]
[326764535,1715332240928,-500.0,0.00027397,4]
[326764536,1715332240937,-514.47853956,0.00027397,4]
[326764537,1715332240946,-758.43,0.00027397,4]
[326764538,1715332240955,-500.0,0.00027397,4]
[326764539,1715332240964,-503.80965959,0.00027397,4]
[326764540,1715332240973,-500.0,0.00027397,4]
[326764541,1715332240983,-500.0,0.00027397,4]
[326764542,1715332240992,-685.24,0.00027397,4]
[326764543,1715332241001,-500.0,0.00027397,4]
[326764544,1715332241011,-598.69,0.00027397,4]
[326764545,1715332241020,-500.0,0.00027397,4]
[326764546,1715332241029,-502.96687397,0.00027397,4]
[326764547,1715332241038,-723.53,0.00027397,4]
[326764548,1715332241048,-516.69246121,0.00027397,4]
[326764549,1715332241058,-523.31717082,0.00027397,4]
[326764550,1715332241067,-578.83,0.00027397,4]
[326764551,1715332241076,-500.0,0.00027397,4]
[326764552,1715332241085,-568.35712768,0.00027397,4]
[326764553,1715332241095,-554.01,0.00027397,4]
[326764554,1715332241104,-500.0,0.00027397,4]
[326764555,1715332241113,-500.0,0.00027397,4]
[326764556,1715332241122,-151.0,0.00027397,7]
[326764557,1715332241131,-151.0,0.00027397,7]
[326764558,1715332241141,-280.834364,0.00027397,7]
[326764559,1715332241150,-500.0,0.00027397,4]
[326764560,1715332241159,-500.0,0.00027397,4]
[326764561,1715332241168,-500.0,0.00027397,4]
[326764562,1715332241177,-500.0,0.00027397,4]
[326764563,1715332241187,-500.0,0.00027397,4]
[326764564,1715332241199,-500.0,0.00027397,2]
[326764565,1715332241209,-535.16,0.00027397,4]
[326764566,1715332241218,-556.62987513,0.00027397,4]
[326764567,1715332241228,-541.76,0.00027397,4]
[326764568,1715332241239,-500.0,0.00027397,4]
[326764569,1715332241248,-500.0,0.00027397,4]
[326764570,1715332241257,-806.78,0.00027397,2]
[326764571,1715332241268,-500.0,0.00027397,4]
[326764572,1715332241277,-526.92,0.00027397,4]
[326764573,1715332241287,-879.7,0.00027397,4]
[326764574,1715332241296,-1073.2,0.00027397,4]
[326764575,1715332241305,-500.0,0.00027397,4]
[326764576,1715332241314,-500.0,0.00027397,4]
[326764577,1715332241323,-585.6,0.00027397,4]
[326764578,1715332241332,-222.48389533,0.00027397,4]
[326764579,1715332241341,-500.0,0.00027397,4]
[326764580,1715332241351,-500.0,0.00027397,4]
[326764581,1715332241360,-570.74,0.00027397,4]
[326764582,1715332241369,-500.0,0.00027397,4]
[326764583,1715332241379,-500.0,0.00027397,4]
[326764584,1715332241388,-500.0,0.00027397,4]
[326764585,1715332241399,-500.0,0.00027397,4]
[326764586,1715332241408,-507.3771658,0.00027397,4]
[326764587,1715332241417,-500.0,0.00027397,4]
[326764588,1715332241426,-995.96,0.00027397,4]
[326764589,1715332241435,-821.87,0.00027397,4]
[326764590,1715332241445,-579.58547543,0.00027397,4]
[326764591,1715332241454,-646.51,0.00027397,4]
[326764592,1715332241463,-500.0,0.00027397,4]
[326764593,1715332241472,-500.0,0.00027397,4]
[326764594,1715332241482,-500.0,0.00027397,4]
[326764595,1715332241493,-500.0,0.00027397,4]
[326764596,1715332241503,-500.0,0.00027397,4]
[326764597,1715332241512,-500.0,0.00027397,4]
[326764598,1715332241522,-638.15,0.00027397,4]
[326764599,1715332241531,-500.0,0.00027397,4]
[326764600,1715332241540,-500.0,0.00027397,4]
[326764601,1715332241549,-504.1490901,0.00027397,4]
[326764602,1715332241559,-504.81718277,0.00027397,4]
[326764603,1715332241568,-589.66,0.00027397,4]
[326764604,1715332241577,-770.68,0.00027397,4]
[326764605,1715332241587,-650.37,0.00027397,4]
[326764606,1715332241596,-500.0,0.00027397,4]
[326764607,1715332241605,-504.29254177,0.00027397,4]
[326764608,1715332241615,-507.99633477,0.00027397,4]
[326764609,1715332241624,-500.0,0.00027397,4]
[326764610,1715332241634,-500.0,0.00027397,4]
[326764611,1715332241644,-504.14270368,0.00027397,4]
[326764612,1715332241653,-505.66606798,0.00027397,4]
[326764613,1715332241662,-867.55,0.00027397,4]
[326764614,1715332241672,-509.42967691,0.00027397,4]
[326764615,1715332241681,-500.0,0.00027397,4]
[326764616,1715332241690,-500.0,0.00027397,4]
[326764617,1715332241699,-500.0,0.00027397,4]
[326764618,1715332241708,-500.0,0.00027397,4]
[326764619,1715332241717,-505.53236897,0.00027397,4]
[326764620,1715332241727,-520.08591716,0.00027397,4]
[326764621,1715332241736,-500.0,0.00027397,4]
[326764622,1715332241745,-500.0,0.00027397,4]
[326764623,1715332241754,-500.0,0.00027397,4]
[326764624,1715332241763,-588.63,0.00027397,4]
[326764625,1715332241772,-836.11,0.00027397,4]
[326764626,1715332241781,-500.0,0.00027397,4]
[326764627,1715332241790,-500.0,0.00027397,4]
[326764628,1715332241799,-739.03,0.00027397,4]
[326764629,1715332241809,-500.0,0.00027397,4]
[326764630,1715332241818,-500.0,0.00027397,4]
[326764631,1715332241827,-500.0,0.00027397,4]
[326764632,1715332241836,-500.0,0.00027397,4]
[326764633,1715332241846,-156.77552099,0.00027397,4]
[326764634,1715332241857,-506.95392501,0.00027397,4]
[326764635,1715332241869,-509.0615967,0.00027397,4]
[326764636,1715332241879,-622.32549216,0.00027397,4]
[326764637,1715332241892,-500.0,0.00027397,4]
[326764638,1715332241903,-500.0,0.00027397,4]
[326764639,1715332241913,-508.47016286,0.00027397,4]
[326764640,1715332241922,-500.0,0.00027397,4]
[326764641,1715332241933,-188.278691,0.00027397,7]
[326764642,1715332241942,-659.0,0.00027397,4]
[326764643,1715332241952,-500.0,0.00027397,4]
[326764644,1715332241961,-190.32685245,0.00027397,4]
[326764645,1715332241971,-500.0,0.00027397,4]
[326764646,1715332241980,-500.0,0.00027397,4]
[326764647,1715332241989,-1536.41,0.00027397,4]
[326764648,1715332241999,-638.33,0.00027397,4]
[326764649,1715332242008,-500.0,0.00027397,4]
[326764650,1715332242018,-676.21,0.00027397,4]
[326764651,1715332242028,-500.0,0.00027397,4]
[326764652,1715332242037,-738.84,0.00027397,4]
[326764653,1715332242046,-507.25467947,0.00027397,4]
[326764654,1715332242055,-500.0,0.00027397,4]
[326764655,1715332242065,-1884.74,0.00027397,4]
[326764656,1715332242074,-500.0,0.00027397,4]
[326764657,1715332242083,-500.0,0.00027397,4]
[326764658,1715332242092,-515.30368634,0.00027397,4]
[326764659,1715332242101,-1763.53,0.00027397,4]
[326764660,1715332242110,-765.12,0.00027397,4]
[326764661,1715332242120,-500.0,0.00027397,4]
[326764662,1715332242129,-502.37081748,0.00027397,4]
[326764663,1715332242138,-504.75381479,0.00027397,4]
[326764664,1715332242148,-500.0,0.00027397,4]
[326764665,1715332242157,-300.0,0.00027397,2]
[326764666,1715332242166,-579.32,0.00027397,4]
[326764667,1715332242175,-500.0,0.00027397,4]
[326764668,1715332242184,-500.0,0.00027397,4]
[326764669,1715332242198,-500.0,0.00027397,4]
[326764670,1715332242208,-500.0,0.00027397,4]
[326764671,1715332242217,-200.0,0.00027397,2]
[326764672,1715332242227,-172.05643811,0.00027397,4]
[326764673,1715332242236,-500.0,0.00027397,4]
[326764674,1715332242245,-507.42550479,0.00027397,4]
[326764675,1715332242254,-675.86,0.00027397,4]
[326764676,1715332242263,-235.52315536,0.00027397,4]
[326764677,1715332242275,-509.84586393,0.00027397,4]
[326764678,1715332242284,-502.17254039,0.00027397,4]
[326764679,1715332242293,-511.05529773,0.00027397,4]
[326764680,1715332242303,-500.0,0.00027397,4]
[326764681,1715332242313,-500.0,0.00027397,4]
[326764682,1715332242322,-500.0,0.00027397,4]
[326764683,1715332242336,-572.29,0.00027397,4]
[326764684,1715332242346,-200.08396528,0.00027397,4]
[326764685,1715332242355,-501.3676341,0.00027397,4]
[326764686,1715332242364,-500.0,0.00027397,4]
[326764687,1715332242374,-500.0,0.00027397,4]
[326764688,1715332242383,-548.99,0.00027397,4]
[326764689,1715332242394,-1011.4,0.00027397,4]
[326764690,1715332242403,-509.37332551,0.00027397,4]
[326764692,1715332242413,-151.0,0.00027397,7]
[326764694,1715332242422,-151.0,0.00027397,7]
[326764696,1715332242432,-151.0,0.00027397,7]
[326764698,1715332242441,-500.0,0.00027397,4]
[326764699,1715332242451,-722.13,0.00027397,4]
[326764702,1715332242460,-500.0,0.00027397,4]
[326764705,1715332242469,-1590.42,0.00027397,4]
[326764707,1715332242478,-591.78,0.00027397,4]
[326764708,1715332242488,-500.0,0.00027397,4]
[326764710,1715332242497,-520.45891474,0.00027397,4]
[326764713,1715332242506,-901.91,0.00027397,4]
[326764716,1715332242515,-500.0,0.00027397,4]
[326764718,1715332242524,-500.0,0.00027397,4]
[326764720,1715332242533,-500.0,0.00027397,4]
[326764722,1715332242542,-513.21946643,0.00027397,4]
[326764725,1715332242552,-503.35072008,0.00027397,4]
[326764727,1715332242561,-624.01,0.00027397,4]
[326764731,1715332242570,-500.0,0.00027397,4]
[326764734,1715332242579,-500.0,0.00027397,4]
[326764737,1715332242588,-500.0,0.00027397,4]
[326764740,1715332242598,-596.05,0.00027397,4]
[326764742,1715332242607,-1218.13,0.00027397,4]
[326764744,1715332242617,-336.84267454,0.00027397,4]
[326764746,1715332242627,-493.1,0.00027397,4]
[326764748,1715332242636,-501.59499149,0.00027397,4]
[326764750,1715332242646,-500.0,0.00027397,4]
[326764752,1715332242656,-739.77,0.00027397,4]
[326764754,1715332242665,-1021.01,0.00027397,2]
[326764756,1715332242675,-568.32,0.00027397,4]
[326764758,1715332242683,-500.0,0.00027397,4]
[326764760,1715332242692,-500.0,0.00027397,4]
[326764761,1715332242701,-293.71379413,0.00027397,4]
[326764767,1715332242711,-500.0,0.00027397,4]
[326764772,1715332242720,-566.83,0.00027397,4]
[326764776,1715332242730,-501.9505903,0.00027397,4]
[326764780,1715332242739,-1343.62,0.00027397,4]
[326764784,1715332242748,-728.07,0.00027397,4]
[326764788,1715332242757,-500.0,0.00027397,4]
[326764792,1715332242766,-151.0,0.00027397,7]
[326764795,1715332242775,-1136.56,0.00027397,4]
[326764798,1715332242785,-151.0,0.00027397,7]
[326764801,1715332242794,-151.0,0.00027397,7]
[326764803,1715332242803,-714.0,0.00027397,4]
[326764806,1715332242812,-1221.22,0.00027397,4]
[326764810,1715332242822,-503.16313051,0.00027397,4]
[326764813,1715332242831,-1189.77,0.00027397,4]
[326764816,1715332242840,-500.0,0.00027397,4]
[326764819,1715332242850,-500.0,0.00027397,4]
[326764822,1715332242859,-563.24513802,0.00027397,2]
[326764825,1715332242868,-500.0,0.00027397,4]
[326764826,1715332242878,-500.0,0.00027397,4]
[326764827,1715332242887,-500.0,0.00027397,4]
[326764828,1715332242896,-151.0,0.00027397,7]
[326764829,1715332242905,-151.0,0.00027397,7]
[326764830,1715332242914,-151.0,0.00027397,7]
[326764831,1715332242924,-151.0,0.00027397,7]
[326764832,1715332242933,-500.0,0.00027397,4]
[326764833,1715332242943,-953.82,0.00027397,4]
[326764834,1715332242953,-631.06,0.00027397,4]
[326764835,1715332242962,-500.0,0.00027397,4]
[326764836,1715332242972,-500.0,0.00027397,4]
[326764837,1715332242981,-500.0,0.00027397,23]
[326764838,1715332242990,-503.64587967,0.00027397,23]
[326764839,1715332243000,-1513.85,0.00027397,4]
[326764840,1715332243009,-500.0,0.00027397,4]
[326764841,1715332243019,-500.0,0.00027397,4]
[326764842,1715332243028,-547.46,0.00027397,4]
[326764843,1715332243037,-500.0,0.00027397,4]
[326764844,1715332243046,-248.0,0.00027397,4]
[326764845,1715332243055,-151.0,0.00027397,7]
[326764846,1715332243064,-2328.17,0.00027397,4]
[326764847,1715332243073,-1782.92,0.00027397,4]
[326764848,1715332243082,-590.45,0.00027397,4]
[326764849,1715332243091,-1883.51,0.00027397,4]
[326764850,1715332243101,-962.03,0.00027397,4]
[326764851,1715332243110,-1922.34,0.00027397,4]
[326764852,1715332243119,-1383.27,0.00027397,4]
[326764853,1715332243127,-815.28,0.00027397,4]
[326764854,1715332243137,-1671.98,0.00027397,4]
[326764855,1715332243147,-500.0,0.00027397,4]
[326764856,1715332243157,-500.0,0.00027397,4]
[326764857,1715332243166,-734.48,0.00027397,4]
[326764858,1715332243176,-500.0,0.00027397,4]
[326764859,1715332243187,-1255.29,0.00027397,4]
[326764860,1715332243199,-500.0,0.00027397,4]
[326764861,1715332243208,-513.30407165,0.00027397,4]
[326764862,1715332243218,-656.2,0.00027397,4]
[326764863,1715332243228,-632.16,0.00027397,4]
[326764864,1715332243237,-514.3769406,0.00027397,4]
[326764865,1715332243246,-151.0,0.00027397,7]
[326764866,1715332243256,-808.22,0.00027397,4]
[326764867,1715332243266,-151.0,0.00027397,7]
[326764868,1715332243275,-708.23,0.00027397,4]
[326764869,1715332243285,-151.0,0.00027397,7]
[326764878,1715332243439,-500.0,0.00027397,4]
[326764883,1715332243461,-1876.93,0.00027397,4]
[326764887,1715332243471,-509.56473631,0.00027397,4]
[326764890,1715332243480,-1180.48,0.00027397,4]
[326764892,1715332243489,-701.88,0.00027397,4]
[326764894,1715332243499,-1011.75,0.00027397,4]
[326764896,1715332243508,-500.0,0.00027397,4]
[326764898,1715332243517,-510.02572581,0.00027397,4]
[326764900,1715332243527,-500.0,0.00027397,4]
[326764902,1715332243536,-500.0,0.00027397,4]
[326764904,1715332243545,-151.0,0.00027397,7]
[326764906,1715332243554,-673.33,0.00027397,4]
[326764908,1715332243563,-500.0,0.00027397,4]
[326764909,1715332243572,-151.0,0.00027397,7]
[326764910,1715332243581,-151.0,0.00027397,7]
[326764911,1715332243590,-500.0,0.00027397,4]
[326764912,1715332243600,-1616.24,0.00027397,4]
[326764913,1715332243609,-1992.78,0.00027397,4]
[326764914,1715332243618,-500.0,0.00027397,4]
[326764915,1715332243627,-339.654298,0.00027397,7]
[326764916,1715332243636,-1361.85,0.00027397,4]
[326764917,1715332243645,-339.654298,0.00027397,7]
[326764918,1715332243655,-339.654298,0.00027397,7]
[326764919,1715332243664,-542.14,0.00027397,4]
[326764920,1715332243673,-500.0,0.00027397,4]
[326764921,1715332243682,-523.89248038,0.00027397,4]
[326764922,1715332243692,-500.0,0.00027397,4]
[326764923,1715332243702,-892.25,0.00027397,4]
[326764924,1715332243712,-339.654298,0.00027397,7]
[326764925,1715332243721,-339.654298,0.00027397,7]
[326764926,1715332243730,-339.654298,0.00027397,7]
[326764927,1715332243739,-500.0,0.00027397,4]
[326764928,1715332243749,-718.32,0.00027397,4]
[326764929,1715332243758,-510.01498456,0.00027397,4]
[326764930,1715332243767,-500.0,0.00027397,4]
[326764931,1715332243776,-151.0,0.00027397,7]
[326764932,1715332243786,-582.12,0.00027397,4]
[326764933,1715332243806,-1282.36,0.00027397,4]
[326764934,1715332243817,-2265.28,0.00027397,4]
[326764935,1715332243827,-500.0,0.00027397,4]
[326764936,1715332243837,-500.0,0.00027397,4]
[326764937,1715332243847,-500.0,0.00027397,4]
[326764938,1715332243857,-500.0,0.00027397,4]
[326764939,1715332243868,-507.49208141,0.00027397,4]
[326764940,1715332243878,-500.0,0.00027397,4]
[326764941,1715332243888,-885.59,0.00027397,4]
[326764942,1715332243899,-520.6740581,0.00027397,4]
[326764943,1715332243909,-1918.89,0.00027397,4]
[326764944,1715332243919,-697.2,0.00027397,4]
[326764945,1715332243929,-694.68,0.00027397,4]
[326764946,1715332243939,-500.0,0.00027397,4]
[326764947,1715332243949,-521.04665712,0.00027397,4]
[326764948,1715332243959,-2575.84,0.00027397,4]
[326764949,1715332243969,-501.14,0.00027397,4]